fUST/lending_fUST_20250719
["ID","MTS","AMOUNT","RATE_DAILY","PERIOD"]
[373188041,1752898246756,-151.0,0.00018428,2]
[373188043,1752898246766,-460.0,0.00018428,2]
[373188045,1752898246775,-460.0,0.00018428,2]
[373188046,1752898246785,-460.0,0.00018428,2]
[373188047,1752898246794,-1201.486897,0.00018428,2]
[373188048,1752898246804,-1201.486897,0.00018428,2]
[373188049,1752898246814,-460.0,0.00018428,2]
[373188050,1752898246824,-460.0,0.00018428,2]
[373188051,1752898246834,-460.0,0.00018428,2]
[373188052,1752898246843,-460.0,0.00018428,2]
[373188053,1752898246853,-151.0,0.00018429,2]
[373188054,1752898246862,-151.0,0.00018429,2]
[373188055,1752898246872,-151.0,0.00018429,2]
[373188056,1752898246881,-766.02,0.00018429,2]
[373188057,1752898246891,-472.15,0.00018429,2]
[373188058,1752898246900,-900.24987284,0.00018429,2]
[373188059,1752898246910,-578.06420022,0.00018429,2]
[373188060,1752898246920,-900.24987284,0.00018429,2]
[373188061,1752898246929,-900.24987284,0.00018429,2]
[373188062,1752898246942,-900.24987284,0.00018429,2]
[373188063,1752898246954,-900.24987284,0.00018429,2]
[373188064,1752898246964,-900.24987284,0.00018429,2]
[373188065,1752898246974,-900.24987284,0.00018429,2]
[373188066,1752898246984,-900.24987284,0.00018429,2]
[373188067,1752898246993,-900.24987284,0.00018429,2]
[373188068,1752898247003,-900.24987284,0.00018429,2]
[373188069,1752898247013,-900.24987284,0.00018429,2]
[373188070,1752898247022,-900.24987284,0.00018429,2]
[373188071,1752898247032,-900.24987284,0.00018429,2]
[373188072,1752898247042,-900.24987284,0.00018429,2]
[373188073,1752898247051,-900.24987284,0.00018429,2]
[373188074,1752898247060,-900.24987284,0.00018429,2]
[373188075,1752898247070,-900.24987284,0.00018429,2]
[373188076,1752898247080,-900.24987284,0.00018429,2]
[373188077,1752898247090,-900.24987284,0.00018429,2]
[373188078,1752898247101,-151.0,0.0001843,2]
[373188079,1752898247111,-151.0,0.0001843,2]
[373188080,1752898247120,-151.0,0.0001843,2]
[373188081,1752898247130,-151.0,0.0001843,2]
[373188082,1752898247139,-151.0,0.0001843,2]
[373188083,1752898247148,-151.0,0.0001843,2]
[373188084,1752898247158,-1148.44,0.0001843,2]
[373188085,1752898247167,-460.0,0.0001843,2]
[373188086,1752898247177,-2423.09,0.00018431,2]
[373188087,1752898247187,-794.42,0.00018431,2]
[373188088,1752898247198,-3404.49650662,0.00018452,2]
[373188089,1752898247207,-305.40284297,0.00018477,2]
[373188090,1752898247217,-460.0,0.00018528,2]
[373188091,1752898247226,-500.0,0.00018628,2]
[373188092,1752898247235,-151.0,0.00018628,2]
[373188093,1752898247245,-290.592293,0.00018628,2]
[373188094,1752898247255,-290.592293,0.00018628,2]
[373188095,1752898247264,-933.69,0.00018628,2]
[373188096,1752898247274,-1037.42,0.00018628,2]
[373188097,1752898247283,-1590.24,0.00018629,2]
[373188098,1752898247295,-460.0,0.00018629,2]
[373188099,1752898247305,-886.81,0.00018629,2]
[373188100,1752898247315,-800.0,0.00018638,2]
[373188101,1752898247448,-429.3901486,0.00018685,2]
[373188102,1752898247458,-460.0,0.00018689,2]
[373188103,1752898247468,-460.0,0.00018689,2]
[373188104,1752898247478,-460.0,0.00018689,2]
[373188105,1752898247487,-1577.74,0.00018689,2]
[373188106,1752898247497,-2013.66,0.0001869,2]
[373188107,1752898247507,-460.0,0.0001869,2]
[373188108,1752898247516,-460.0,0.0001869,2]
[373188109,1752898247527,-1709.05,0.0001869,2]
[373188110,1752898247537,-211.06105231,0.0001869,2]
[373188111,1752898247547,-993.05,0.0001869,2]
[373188112,1752898247557,-460.0,0.0001869,2]
[373188113,1752898247568,-3636.05,0.0001869,2]
[373188114,1752898247579,-460.0,0.0001869,2]
[373188115,1752898247590,-460.0,0.0001869,2]
[373188116,1752898247601,-460.0,0.0001869,2]
[373188117,1752898247613,-1304.98,0.00018691,2]
[373188118,1752898247623,-460.0,0.00018702,2]
[373188119,1752898247632,-460.0,0.00018702,2]
[373188120,1752898247642,-525.62,0.00018702,2]
[373188121,1752898247653,-460.0,0.00018702,2]
[373188122,1752898247663,-793.2,0.00018702,2]
[373188123,1752898247673,-460.0,0.00018702,2]
[373188124,1752898247683,-460.0,0.00018702,2]
[373188125,1752898247692,-460.0,0.00018702,2]
[373188126,1752898247702,-310.8,0.00018702,2]
[373188127,1752898247711,-460.0,0.00018702,2]
[373188128,1752898247721,-460.0,0.00018702,2]
[373188129,1752898247730,-766.02,0.00018703,2]
[373188130,1752898247740,-472.15,0.00018703,2]
[373188131,1752898247749,-1148.44,0.00018704,2]
[373188132,1752898247758,-460.0,0.00018704,2]
[373188133,1752898247767,-2423.09,0.00018705,2]
[373188134,1752898247777,-794.42,0.00018705,2]
[373188135,1752898247786,-150.44874067,0.00018725,2]
[373188136,1752898247795,-170.18971475,0.00018725,2]
[373188137,1752898247805,-305.33086894,0.00018725,2]
[373188138,1752898247815,-618.97160078,0.00018747,2]
[373188139,1752898247824,-183.41532937,0.00018761,2]
[373188140,1752898247834,-165.886091,0.00018762,2]
[373188141,1752898247843,-3404.49650662,0.00018762,2]
[373188142,1752898247852,-3270.05905738,0.00018777,2]
[373188143,1752898247862,-460.0,0.00018802,2]
[373188144,1752898247871,-151.0,0.000189,2]
[373188145,1752898247881,-151.0,0.000189,2]
[373188146,1752898247891,-1445.0674579,0.000189,2]
[373188147,1752898247900,-500.0,0.00018902,2]
[373188148,1752898247910,-933.69,0.00018902,2]
[373188149,1752898247919,-1037.42,0.00018902,2]
[373188150,1752898247929,-151.0,0.00018903,2]
[373188151,1752898247939,-152.580967,0.00018903,2]
[373188152,1752898247948,-154.008574,0.00018903,2]
[373188153,1752898247957,-153.370387,0.00018903,2]
[373188154,1752898247967,-151.0,0.00018903,2]
[373188155,1752898247975,-1590.24,0.00018903,2]
[373188156,1752898247985,-460.0,0.00018903,2]
[373188157,1752898247994,-886.81,0.00018903,2]
[373188158,1752898248004,-2935.76496927,0.00018914,2]
[373188159,1752898248014,-25000.0,0.00018915,2]
[373188160,1752898248024,-217.40428983,0.00018915,2]
[373188161,1752898248034,-151.0,0.00018915,2]
[373188162,1752898248044,-174.020776,0.00018915,2]
[373188163,1752898248054,-500.0,0.00018937,2]
[373188164,1752898248063,-501.51906247,0.00018937,2]
[373188165,1752898248073,-501.04531724,0.00018937,2]
[373188166,1752898248083,-500.0,0.00018937,2]
[373188167,1752898248092,-625.75683967,0.00018939,2]
[373188168,1752898248102,-293.51950427,0.00018963,2]
[373188169,1752898248112,-460.0,0.00018963,2]
[373188170,1752898248121,-1577.74,0.00018963,2]
[373188171,1752898248131,-2013.66,0.00018964,2]
[373188172,1752898248141,-460.0,0.00018964,2]
[373188173,1752898248151,-430.03335677,0.00018964,2]
[373188174,1752898248160,-1709.05,0.00018964,2]
[373188175,1752898248170,-993.05,0.00018964,2]
[373188176,1752898248180,-460.0,0.00018964,2]
[373188177,1752898248190,-3636.05,0.00018964,2]
[373188178,1752898248201,-152.737409,0.00018964,2]
[373188179,1752898248210,-285.7830551,0.00018964,2]
[373188180,1752898248220,-460.0,0.00018964,2]
[373188181,1752898248230,-151.0,0.00018964,2]
[373188182,1752898248240,-460.0,0.00018964,2]
[373188183,1752898248250,-156.511047,0.00018964,2]
[373188184,1752898248259,-1304.98,0.00018965,2]
[373188185,1752898248270,-604.53573044,0.00018976,2]
[373188186,1752898248279,-460.0,0.00018976,2]
[373188187,1752898248289,-525.62,0.00018976,2]
[373188188,1752898248299,-460.0,0.00018976,2]
[373188189,1752898248312,-793.2,0.00018976,2]
[373188190,1752898248322,-460.0,0.00018976,2]
[373188191,1752898248333,-460.0,0.00018976,2]
[373188192,1752898248343,-228.14138815,0.00018976,2]
[373188193,1752898248354,-157.51,0.00018976,2]
[373188194,1752898248363,-460.0,0.00018976,2]
[373188195,1752898248373,-151.0,0.00018977,2]
[373188196,1752898248384,-151.0,0.00018977,2]
[373188197,1752898248394,-151.0,0.00018977,2]
[373188198,1752898248404,-151.0,0.00018977,2]
[373188199,1752898248414,-151.0,0.00018977,2]
[373188200,1752898248424,-151.0,0.00018977,2]
[373188201,1752898248433,-151.0,0.00018977,2]
[373188202,1752898248443,-151.0,0.00018977,2]
[373188203,1752898248455,-766.02,0.00018977,2]
[373188204,1752898248466,-1201.486897,0.00018977,2]
[373188205,1752898248476,-1201.486897,0.00018977,2]
[373188206,1752898248485,-472.15,0.00018977,2]
[373188207,1752898248495,-1148.44,0.00018978,2]
[373188208,1752898248504,-460.0,0.00018978,2]
[373188209,1752898248520,-2423.09,0.00018979,2]
[373188210,1752898248531,-794.42,0.00018979,2]
[373188211,1752898248541,-7356.9806417,0.00018986,2]
[373188212,1752898248551,-151.0,0.00019072,2]
[373188213,1752898248565,-151.0,0.00019072,2]
[373188214,1752898248580,-3404.49650662,0.00019072,2]
[373188215,1752898248595,-460.0,0.00019076,2]
[373188216,1752898248607,-151.0,0.00019076,2]
[373188217,1752898248621,-151.0,0.00019076,2]
[373188218,1752898248635,-151.0,0.00019076,2]
[373188219,1752898248649,-151.0,0.00019076,2]
[373188220,1752898248663,-160.0,0.00019125,2]
[373188221,1752898248677,-500.0,0.00019176,2]
[373188222,1752898248690,-933.69,0.00019176,2]
[373188223,1752898248707,-1037.42,0.00019176,2]
[373188224,1752898248720,-1590.24,0.00019177,2]
[373188225,1752898248734,-460.0,0.00019177,2]
[373188226,1752898248747,-886.81,0.00019177,2]
[373188227,1752898248759,-171.15023,0.00019178,2]
[373188228,1752898248772,-5000.0,0.00019178,2]
[373188229,1752898248786,-5000.0,0.00019178,2]
[373188230,1752898248799,-460.0,0.00019237,2]
[373188231,1752898248811,-1577.74,0.00019237,2]
[373188232,1752898248823,-2013.66,0.00019238,2]
[373188233,1752898248835,-460.0,0.00019238,2]
[373188234,1752898248848,-1709.05,0.00019238,2]
[373188235,1752898248861,-993.05,0.00019238,2]
[373188236,1752898248875,-460.0,0.00019238,2]
[373188237,1752898248891,-3636.05,0.00019238,2]
[373188238,1752898248904,-460.0,0.00019238,2]
[373188239,1752898248920,-460.0,0.00019238,2]
[373188240,1752898248933,-1304.98,0.00019239,2]
[373188241,1752898248944,-460.0,0.0001925,2]
[373188242,1752898248955,-525.62,0.0001925,2]
[373188243,1752898248967,-460.0,0.0001925,2]
[373188244,1752898248980,-793.2,0.0001925,2]
[373188245,1752898248995,-562.52,0.0001925,2]
[373188246,1752898249008,-460.0,0.0001925,2]
[373188247,1752898249020,-542.50861646,0.0001925,2]
[373188248,1752898249031,-151.0,0.00019251,2]
[373188249,1752898249045,-290.592293,0.00019251,2]
[373188250,1752898249057,-290.592293,0.00019251,2]
[373188251,1752898249068,-766.02,0.00019251,2]
[373188252,1752898249078,-472.15,0.00019251,2]
[373188253,1752898249090,-1148.44,0.00019252,2]
[373188254,1752898249102,-460.0,0.00019252,2]
[373188255,1752898249113,-2423.09,0.00019253,2]
[373188256,1752898249125,-794.42,0.00019253,2]
[373188257,1752898249137,-158.09469489,0.00019329,2]
[373188258,1752898249149,-460.0,0.0001935,2]
[373188259,1752898249161,-3404.49650662,0.00019383,2]
[373188260,1752898249172,-358.108017,0.00019392,2]
[373188261,1752898249184,-7356.9806417,0.00019396,2]
[373188262,1752898249198,-151.0,0.00019444,2]
[373188263,1752898249209,-500.0,0.0001945,2]
[373188264,1752898249222,-933.69,0.0001945,2]
[373188265,1752898249233,-1037.42,0.0001945,2]
[373188266,1752898249245,-151.0,0.0001945,2]
[373188267,1752898249257,-1590.24,0.00019451,2]
[373188268,1752898249269,-571.82417326,0.00019451,2]
[373188269,1752898249280,-886.81,0.00019451,2]
[373188270,1752898249292,-25000.0,0.00019463,2]
[373188271,1752898249304,-151.0,0.00019463,2]
[373188272,1752898249315,-151.0,0.00019463,2]
[373188273,1752898249330,-152.21559,0.00019463,2]
[373188274,1752898249342,-151.0,0.00019463,2]
[373188275,1752898249353,-151.0,0.00019463,2]
[373188276,1752898249364,-151.0,0.00019463,2]
[373188277,1752898249376,-151.0,0.00019463,2]
[373188278,1752898249388,-1201.486897,0.00019463,2]
[373188279,1752898249400,-1201.486897,0.00019463,2]
[373188280,1752898249413,-503.40908628,0.00019485,2]
[373188281,1752898249425,-501.15015757,0.00019485,2]
[373188282,1752898249438,-460.0,0.00019511,2]
[373188283,1752898249451,-1577.74,0.00019511,2]
[373188284,1752898249463,-2013.66,0.00019512,2]
[373188285,1752898249475,-460.0,0.00019512,2]
[373188286,1752898249487,-1709.05,0.00019512,2]
[373188287,1752898249499,-993.05,0.00019512,2]
[373188288,1752898249511,-460.0,0.00019512,2]
[373188289,1752898249523,-3636.05,0.00019512,2]
[373188290,1752898249534,-460.0,0.00019512,2]
[373188291,1752898249545,-460.0,0.00019512,2]
[373188292,1752898249557,-1304.98,0.00019513,2]
[373188293,1752898249568,-460.0,0.00019524,2]
[373188294,1752898249580,-525.62,0.00019524,2]
[373188295,1752898249591,-460.0,0.00019524,2]
[373188296,1752898249602,-793.2,0.00019524,2]
[373188297,1752898249614,-460.0,0.00019524,2]
[373188298,1752898249625,-151.0,0.00019525,2]
[373188299,1752898249636,-151.0,0.00019525,2]
[373188300,1752898249647,-151.0,0.00019525,2]
[373188301,1752898249658,-151.0,0.00019525,2]
[373188302,1752898249669,-766.02,0.00019525,2]
[373188303,1752898249681,-472.15,0.00019525,2]
[373188304,1752898249692,-1148.44,0.00019526,2]
[373188305,1752898249705,-460.0,0.00019526,2]
[373188306,1752898249717,-2423.09,0.00019527,2]
[373188307,1752898249728,-794.42,0.00019527,2]
[373188308,1752898249738,-460.0,0.00019624,2]
[373188309,1752898249748,-151.0,0.00019624,2]
[373188310,1752898249757,-185.983869,0.00019624,2]
[373188311,1752898249767,-7356.9806417,0.00019639,2]
[373188312,1752898249776,-260.0,0.00019673,2]
[373188313,1752898249785,-587.0,0.00019691,2]
[373188314,1752898249795,-3404.49650662,0.00019693,2]
[373188315,1752898249805,-500.0,0.00019724,2]
[373188316,1752898249814,-933.69,0.00019724,2]
[373188317,1752898249823,-1037.42,0.00019724,2]
[373188318,1752898249833,-151.0,0.00019725,2]
[373188319,1752898249844,-151.0,0.00019725,2]
[373188320,1752898249853,-1590.24,0.00019725,2]
[373188321,1752898249863,-886.81,0.00019725,2]
[373188322,1752898250033,-800.0,0.00019734,2]
[373188323,1752898250055,-215.0738,0.00019736,2]
[373188324,1752898250067,-460.0,0.00019785,2]
[373188325,1752898250079,-1577.74,0.00019785,2]
[373188326,1752898250089,-2013.66,0.00019786,2]
[373188327,1752898250098,-460.0,0.00019786,2]
[373188328,1752898250108,-1709.05,0.00019786,2]
[373188329,1752898250118,-993.05,0.00019786,2]
[373188330,1752898250128,-460.0,0.00019786,2]
[373188331,1752898250137,-3636.05,0.00019786,2]
[373188332,1752898250147,-460.0,0.00019786,2]
[373188333,1752898250157,-205.23121424,0.00019786,2]
[373188334,1752898250167,-1304.98,0.00019787,2]
[373188335,1752898250176,-225.727914,0.00019798,2]
[373188336,1752898250185,-290.592293,0.00019798,2]
[373188337,1752898250195,-290.592293,0.00019798,2]
[373188338,1752898250207,-460.0,0.00019798,2]
[373188339,1752898250217,-525.62,0.00019798,2]
[373188340,1752898250226,-226.40188877,0.00019798,2]
[373188341,1752898250236,-793.2,0.00019798,2]
[373188342,1752898250246,-460.0,0.00019798,2]
[373188343,1752898250255,-766.02,0.00019799,2]
[373188344,1752898250265,-472.15,0.00019799,2]
[373188345,1752898250274,-1148.44,0.000198,2]
[373188346,1752898250283,-460.0,0.000198,2]
[373188347,1752898250293,-2423.09,0.00019801,2]
[373188348,1752898250303,-794.42,0.00019801,2]
[373188349,1752898250312,-460.0,0.00019898,2]
[373188350,1752898250322,-501.72457853,0.00019967,2]
[373188351,1752898250335,-500.0,0.00019967,2]
[373188352,1752898250345,-501.03367433,0.00019967,2]
[373188353,1752898250354,-7356.9806417,0.00019967,2]
[373188354,1752898250364,-151.0,0.00019989,2]
[373188355,1752898250374,-152.042247,0.00019989,2]
[373188356,1752898250383,-151.0,0.00019989,2]
[373188357,1752898250393,-151.0,0.00019989,2]
[373188358,1752898250405,-500.0,0.00019998,2]
[373188359,1752898250415,-933.69,0.00019998,2]
[373188360,1752898250424,-1037.42,0.00019998,2]
[373188361,1752898250434,-1590.24,0.00019999,2]
[373188362,1752898250443,-151.0,0.00019999,2]
[373188363,1752898250455,-886.81,0.00019999,2]
[373188364,1752898250465,-337.18163513,0.00020002,2]
[373188365,1752898250475,-3404.49650662,0.00020003,2]
[373188366,1752898250484,-25000.0,0.00020011,2]
[373188367,1752898250494,-151.0,0.00020011,2]
[373188368,1752898250503,-151.0,0.00020011,2]
[373188369,1752898250513,-460.0,0.00020059,2]
[373188370,1752898250523,-1577.74,0.00020059,2]
[373188371,1752898250533,-2013.66,0.0002006,2]
[373188372,1752898250543,-460.0,0.0002006,2]
[373188373,1752898250553,-1709.05,0.0002006,2]
[373188374,1752898250563,-993.05,0.0002006,2]
[373188375,1752898250572,-460.0,0.0002006,2]
[373188376,1752898250582,-3636.05,0.0002006,2]
[373188377,1752898250591,-460.0,0.0002006,2]
[373188378,1752898250602,-1304.98,0.00020061,2]
[373188379,1752898250611,-151.0,0.00020072,2]
[373188380,1752898250621,-151.0,0.00020072,2]
[373188381,1752898250630,-151.0,0.00020072,2]
[373188382,1752898250639,-460.0,0.00020072,2]
[373188383,1752898250649,-151.0,0.00020072,2]
[373188384,1752898250660,-525.62,0.00020072,2]
[373188385,1752898250670,-151.0,0.00020072,2]
[373188386,1752898250680,-793.2,0.00020072,2]
[373188387,1752898250691,-151.0,0.00020072,2]
[373188388,1752898250702,-151.0,0.00020072,2]
[373188389,1752898250712,-460.0,0.00020072,2]
[373188390,1752898250723,-1201.486897,0.00020072,2]
[373188391,1752898250732,-1201.486897,0.00020072,2]
[373188392,1752898250742,-766.02,0.00020073,2]
[373188393,1752898250751,-472.15,0.00020073,2]
[373188394,1752898250761,-1148.44,0.00020074,2]
[373188395,1752898250771,-460.0,0.00020074,2]
[373188396,1752898250781,-2423.09,0.00020075,2]
[373188397,1752898250791,-794.42,0.00020075,2]
[373188398,1752898250801,-255.40700627,0.00020172,2]
[373188399,1752898250811,-457.371579,0.00020187,2]
[373188400,1752898250822,-7356.9806417,0.00020205,2]
[373188401,1752898250832,-360.0,0.00020221,2]
[373188402,1752898250842,-800.0,0.00020235,2]
[373188403,1752898250851,-202.10282225,0.00020272,2]
[373188404,1752898250861,-933.69,0.00020272,2]
[373188405,1752898250870,-1037.42,0.00020272,2]
[373188406,1752898250879,-1590.24,0.00020273,2]
[373188407,1752898250888,-886.81,0.00020273,2]
[373188408,1752898250898,-151.315414,0.00020282,2]
[373188409,1752898250908,-151.0,0.00020282,2]
[373188410,1752898250918,-3404.49650662,0.00020314,3]
[373188411,1752898250928,-460.0,0.00020333,2]
[373188412,1752898250938,-1577.74,0.00020333,2]
[373188413,1752898250949,-2013.66,0.00020334,2]
[373188414,1752898250959,-460.0,0.00020334,2]
[373188415,1752898250968,-1709.05,0.00020334,2]
[373188416,1752898250978,-993.05,0.00020334,2]
[373188417,1752898250987,-460.0,0.00020334,2]
[373188418,1752898250997,-3636.05,0.00020334,2]
[373188419,1752898251006,-460.0,0.00020334,2]
[373188420,1752898251016,-1304.98,0.00020335,2]
[373188421,1752898251025,-460.0,0.00020346,2]
[373188422,1752898251035,-525.62,0.00020346,2]
[373188423,1752898251045,-793.2,0.00020346,2]
[373188424,1752898251055,-460.0,0.00020346,2]
[373188425,1752898251064,-766.02,0.00020347,2]
[373188426,1752898251074,-472.15,0.00020347,2]
[373188427,1752898251083,-1148.44,0.00020348,2]
[373188428,1752898251092,-460.0,0.00020348,2]
[373188429,1752898251101,-2423.09,0.00020349,2]
[373188430,1752898251111,-794.42,0.00020349,2]
[373188431,1752898251120,-151.0,0.00020374,2]
[373188432,1752898251129,-233.131604,0.00020374,2]
[373188433,1752898251138,-290.0,0.00020398,2]
[373188434,1752898251148,-800.0,0.00020425,2]
[373188435,1752898251157,-358.6756731,0.00020438,2]
[373188436,1752898251167,-206.0,0.0002045,2]
[373188437,1752898251176,-7356.9806417,0.00020455,2]
[373188438,1752898251185,-290.0,0.00020481,2]
[373188439,1752898251195,-151.0,0.000205,3]
[373188440,1752898251206,-1000.0,0.00020515,2]
[373188441,1752898251215,-290.0,0.00020516,2]
[373188442,1752898251225,-933.69,0.00020546,2]
[373188443,1752898251234,-1037.42,0.00020546,2]
[373188444,1752898251244,-1590.24,0.00020547,2]
[373188445,1752898251254,-886.81,0.00020547,2]
[373188446,1752898251264,-490.56290417,0.00020607,2]
[373188447,1752898251273,-1577.74,0.00020607,2]
[373188448,1752898251284,-2013.66,0.00020608,2]
[373188449,1752898251293,-460.0,0.00020608,2]
[373188450,1752898251303,-1709.05,0.00020608,2]
[373188451,1752898251313,-993.05,0.00020608,2]
[373188452,1752898251323,-460.0,0.00020608,2]
[373188453,1752898251335,-3636.05,0.00020608,2]
[373188454,1752898251344,-150.18,0.00020608,2]
[373188455,1752898251353,-290.0,0.00020609,2]
[373188456,1752898251363,-1304.98,0.00020609,2]
[373188457,1752898251374,-290.0,0.00020615,2]
[373188458,1752898251384,-460.0,0.0002062,2]
[373188459,1752898251394,-525.62,0.0002062,2]
[373188460,1752898251404,-793.2,0.0002062,2]
[373188461,1752898251414,-460.0,0.0002062,2]
[373188462,1752898251424,-290.592293,0.00020621,2]
[373188463,1752898251434,-290.592293,0.00020621,2]
[373188464,1752898251444,-151.0,0.00020621,2]
[373188465,1752898251455,-766.02,0.00020621,2]
[373188466,1752898251464,-472.15,0.00020621,2]
[373188467,1752898251473,-1148.44,0.00020622,2]
[373188468,1752898251483,-460.0,0.00020622,2]
[373188469,1752898251492,-2423.09,0.00020623,2]
[373188470,1752898251502,-794.42,0.00020623,2]
[373188471,1752898251513,-3404.49650662,0.00020624,3]
[373188472,1752898251522,-150.0,0.000207,2]
[373188473,1752898251534,-12612.80205064,0.000207,3]
[373188474,1752898251544,-476.34170116,0.000207,3]
[373188475,1752898251556,-214.52603969,0.000207,3]
[373188476,1752898251566,-151.0,0.000207,2]
[373188477,1752898251578,-151.0,0.00020709,2]
[373188478,1752898251589,-151.0,0.00020709,7]
[373188479,1752898251600,-152.059922,0.00020709,7]
[373188480,1752898251610,-151.0,0.00020709,2]
[373188481,1752898251619,-151.0,0.00020709,2]
[373188482,1752898251629,-151.0,0.00020709,2]
[373188483,1752898251638,-151.0,0.00020709,2]
[373188484,1752898251648,-151.536565,0.00020739,2]
[373188485,1752898251657,-151.0,0.00020739,2]
[373188486,1752898251667,-151.0,0.00020739,2]
[373188487,1752898251677,-358.108017,0.00020763,2]
[373188488,1752898251687,-460.0,0.00020769,2]
[373188489,1752898251696,-151.0,0.00020788,2]
[373188490,1752898251706,-152.450528,0.00020788,2]
[373188491,1752898251715,-151.0,0.00020788,2]
[373188492,1752898251724,-151.0,0.00020788,2]
[373188493,1752898251733,-151.0,0.00020788,2]
[373188494,1752898251742,-151.0,0.00020788,2]
[373188495,1752898251752,-206.0,0.000208,2]
[373188496,1752898251761,-517.294,0.00020803,2]
[373188497,1752898251771,-153.794426,0.00020805,2]
[373188498,1752898251782,-151.0,0.00020805,2]
[373188499,1752898251794,-7356.98064173,0.00020814,2]
[373188500,1752898251804,-151.0,0.0002082,2]
[373188501,1752898251816,-933.69,0.0002082,2]
[373188502,1752898251827,-1037.42,0.0002082,2]
[373188503,1752898251837,-2507.98618564,0.00020821,2]
[373188504,1752898251847,-1590.24,0.00020821,2]
[373188505,1752898251858,-199.811781,0.00020821,2]
[373188506,1752898251868,-151.0,0.00020821,2]
[373188507,1752898251878,-203.06884,0.00020821,2]
[373188508,1752898251888,-1201.486897,0.00020821,2]
[373188509,1752898251899,-1201.486897,0.00020821,2]
[373188510,1752898251911,-559.91744774,0.00020821,2]
[373188511,1752898535133,275.0682096,0.0001549,2]
[373188512,1752898909845,434.503001,0.00013699,2]
[373188514,1752898989517,150.0,0.00014661,2]
[373188515,1752899064407,5312.99953482,0.00015461,2]
[373188516,1752899064431,19587.00046518,0.00015461,2]
[373188517,1752899120896,197.53898008,0.00016159,2]
[373188518,1752899181564,150.0,0.00014678,2]
[373188519,1752899237128,-1200.0,0.00016398,2]
[373188520,1752899237149,-1200.0,0.00016398,2]
[373188521,1752899237170,-300.0,0.00016398,2]
[373188522,1752899237192,-3892.34722295,0.00016399,2]
[373188564,1752899432711,-589.76127049,0.00016337,2]
[373188566,1752899432721,-300.0,0.00016398,2]
[373188568,1752899432731,-1200.0,0.00016398,2]
[373188570,1752899432741,-436.13939619,0.00016399,2]
[373188676,1752899438619,-947.31665327,0.00016399,2]
[373188677,1752899438630,-1243.71480431,0.00016399,2]
[373188678,1752899438673,-485.15639243,0.00016399,2]
[373188679,1752899438731,-33970.98273076,0.00016399,2]
[373188680,1752899438740,-284.09932849,0.00016437,2]
[373188681,1752899438750,-420.51839768,0.00016437,2]
[373188682,1752899438760,-254.59957676,0.00016437,2]
[373188683,1752899438770,-460.0,0.00016438,2]
[373188684,1752899438780,-460.0,0.00016438,2]
[373188685,1752899438791,-460.0,0.00016438,2]
[373188686,1752899438800,-460.0,0.00016438,2]
[373188687,1752899438810,-460.0,0.00016438,2]
[373188688,1752899438819,-460.0,0.00016438,2]
[373188689,1752899438829,-460.0,0.00016438,2]
[373188690,1752899438839,-460.0,0.00016438,2]
[373188691,1752899438850,-460.0,0.00016438,2]
[373188692,1752899438860,-465.31507562,0.00016438,2]